[Event "Early-Titled-Tuesday-Blitz-April-02-2024"]
[Site "Chess.com"]
[Date "2024.04.02"]
[Round "8"]
[White "ChessSwole"]
[Black "Predo63"]
[Result "1-0"]
[WhiteElo "2693"]
[BlackElo "2524"]
[TimeControl "180+1"]
[EndTime "9:29:07 PDT"]
[Termination "ChessSwole won by resignation"]

1. d4 {[%clk 0:03:00.9]} 1... d5 {[%clk 0:02:59.3]} 2. c4 {[%clk 0:03:00.9]}
2... c6 {[%clk 0:02:59.8]} 3. Nf3 {[%clk 0:03:01.2]} 3... Nf6 {[%clk 0:03:00.2]}
4. e3 {[%clk 0:03:01.1]} 4... Bf5 {[%clk 0:03:00.3]} 5. Nc3 {[%clk 0:03:00.8]}
5... e6 {[%clk 0:03:00.4]} 6. Nh4 {[%clk 0:03:00.8]} 6... Bg6 {[%clk 0:03:00.3]}
7. Qb3 {[%clk 0:02:57.5]} 7... Qb6 {[%clk 0:03:00]} 8. Nxg6 {[%clk 0:02:54.2]}
8... hxg6 {[%clk 0:02:59.5]} 9. Bd2 {[%clk 0:02:53.5]} 9... Nbd7 {[%clk
0:02:59.7]} 10. h3 {[%clk 0:02:47.1]} 10... Qxb3 {[%clk 0:02:59.6]} 11. axb3
{[%clk 0:02:46.4]} 11... a6 {[%clk 0:03:00.3]} 12. Bd3 {[%clk 0:02:40.9]} 12...
Nh5 {[%clk 0:02:59.8]} 13. O-O {[%clk 0:02:32.4]} 13... f5 {[%clk 0:02:58.9]}
14. f3 {[%clk 0:02:23.4]} 14... Nhf6 {[%clk 0:02:56.8]} 15. Rfe1 {[%clk
0:02:21.9]} 15... Kf7 {[%clk 0:02:56.7]} 16. e4 {[%clk 0:02:15.5]} 16... Rd8
{[%clk 0:02:52.3]} 17. g4 {[%clk 0:02:06.4]} 17... Rxh3 {[%clk 0:02:40.8]} 18.
Kg2 {[%clk 0:02:04.9]} 18... Rh8 {[%clk 0:02:40.2]} 19. exf5 {[%clk 0:01:58.7]}
19... gxf5 {[%clk 0:02:39.4]} 20. gxf5 {[%clk 0:01:53]} 20... exf5 {[%clk
0:02:37.5]} 21. Bxf5 {[%clk 0:01:53]} 21... Bd6 {[%clk 0:02:37.2]} 22. Be6+
{[%clk 0:01:50.1]} 22... Kf8 {[%clk 0:02:37.3]} 23. Rh1 {[%clk 0:01:44.9]} 23...
Rxh1 {[%clk 0:02:26.4]} 24. Rxh1 {[%clk 0:01:45.8]} 24... Ke7 {[%clk 0:02:26.7]}
25. cxd5 {[%clk 0:01:46.1]} 25... cxd5 {[%clk 0:02:24.6]} 26. Bxd5 {[%clk
0:01:45.9]} 26... Nxd5 {[%clk 0:02:22.6]} 27. Nxd5+ {[%clk 0:01:46.8]} 27... Kf7
{[%clk 0:02:23]} 28. Bc3 {[%clk 0:01:30.8]} 28... Re8 {[%clk 0:02:21.7]} 29. Kf2
{[%clk 0:01:27.5]} 29... Rd8 {[%clk 0:02:14.2]} 30. Ne3 {[%clk 0:01:24.2]} 30...
Bf4 {[%clk 0:02:00.1]} 31. Nc4 {[%clk 0:01:18.8]} 31... Bb8 {[%clk 0:01:41.4]}
32. Na5 {[%clk 0:01:13.2]} 32... b6 {[%clk 0:01:39.3]} 33. Nc6 {[%clk
0:01:12.6]} 33... Rc8 {[%clk 0:01:39.7]} 34. Nxb8 {[%clk 0:01:12.4]} 34... Rxb8
{[%clk 0:01:40.1]} 35. b4 {[%clk 0:01:12.5]} 35... b5 {[%clk 0:01:39.2]} 36. d5
{[%clk 0:01:02.3]} 36... Rb6 {[%clk 0:01:38.6]} 37. Rg1 {[%clk 0:01:00.6]} 37...
g6 {[%clk 0:01:31.1]} 38. Ke3 {[%clk 0:00:59.1]} 38... Rd6 {[%clk 0:01:29]} 39.
Ke4 {[%clk 0:00:45.7]} 39... Nb6 {[%clk 0:01:26.3]} 40. Rd1 {[%clk 0:00:44.7]}
40... Nc4 {[%clk 0:01:18.7]} 41. b3 {[%clk 0:00:42.3]} 41... Nb6 {[%clk
0:01:18.5]} 42. Be5 {[%clk 0:00:41.7]} 42... Rd7 {[%clk 0:01:17.3]} 43. d6
{[%clk 0:00:42]} 43... Ke6 {[%clk 0:01:15.7]} 44. Rg1 {[%clk 0:00:41.8]} 44...
Kf7 {[%clk 0:01:14.4]} 45. Ra1 {[%clk 0:00:40.7]} 45... Nc8 {[%clk 0:01:11.7]}
46. Rxa6 {[%clk 0:00:39.9]} 46... Ke6 {[%clk 0:01:11.6]} 47. f4 {[%clk
0:00:40.5]} 47... Na7 {[%clk 0:01:11.1]} 48. Rb6 {[%clk 0:00:38.8]} 48... Nc8
{[%clk 0:01:10]} 49. Rxb5 {[%clk 0:00:36.9]} 49... Na7 {[%clk 0:01:10.3]} 50.
Rb6 {[%clk 0:00:35.2]} 50... Nc8 {[%clk 0:01:10.3]} 51. Ra6 {[%clk 0:00:34.6]}
51... Na7 {[%clk 0:01:10]} 52. Kd4 {[%clk 0:00:32.1]} 52... Nb5+ {[%clk
0:00:58.8]} 53. Kc5 {[%clk 0:00:31.4]} 53... Na7 {[%clk 0:00:59.1]} 54. b5
{[%clk 0:00:29.9]} 54... g5 {[%clk 0:00:56.9]} 55. b6 {[%clk 0:00:28.4]} 55...
Nc8 {[%clk 0:00:53.3]} 56. Ra8 {[%clk 0:00:26.3]} 56... Nxb6 {[%clk 0:00:51.8]}
57. Kxb6 {[%clk 0:00:25.9]} 57... gxf4 {[%clk 0:00:52.7]} 58. Bxf4 {[%clk
0:00:26.2]} 58... Kd5 {[%clk 0:00:53]} 59. Ra5+ {[%clk 0:00:24.7]} 59... Ke6
{[%clk 0:00:52.8]} 60. b4 {[%clk 0:00:22.8]} 60... Rf7 {[%clk 0:00:52]} 61. Be5
{[%clk 0:00:22.6]} 61... Rf8 {[%clk 0:00:49.7]} 62. Rc5 {[%clk 0:00:19.3]} 62...
Rb8+ {[%clk 0:00:49.6]} 63. Ka5 {[%clk 0:00:19.9]} 63... Ra8+ {[%clk 0:00:45.8]}
64. Kb5 {[%clk 0:00:20.2]} 64... Rb8+ {[%clk 0:00:46.3]} 65. Kc4 {[%clk
0:00:20.8]} 65... Ra8 {[%clk 0:00:46.5]} 66. b5 {[%clk 0:00:21.2]} 66... Ra2
{[%clk 0:00:45.4]} 67. b6 {[%clk 0:00:21.1]} 67... Kd7 {[%clk 0:00:43.3]} 68.
Rc7+ {[%clk 0:00:19.6]} 68... Ke6 {[%clk 0:00:43.5]} 69. b7 {[%clk 0:00:20.5]}
69... Rb2 {[%clk 0:00:43]} 70. Bxb2 {[%clk 0:00:20.8]} 1-0

[Event "Early-Titled-Tuesday-Blitz-April-02-2024"]
[Site "Chess.com"]
[Date "2024.04.02"]
[Round "8"]
[White "lilleper1"]
[Black "MagnusCarlsen"]
[Result "0-1"]
[WhiteElo "2916"]
[BlackElo "3230"]
[TimeControl "180+1"]
[EndTime "9:29:09 PDT"]
[Termination "MagnusCarlsen won by resignation"]

1. e4 {[%clk 0:03:00.9]} 1... c5 {[%clk 0:02:57.7]} 2. Nf3 {[%clk 0:03:01]} 2...
e6 {[%clk 0:02:57.3]} 3. g3 {[%clk 0:03:00]} 3... b6 {[%clk 0:02:56.5]} 4. Bg2
{[%clk 0:02:59.3]} 4... Bb7 {[%clk 0:02:56.5]} 5. Nc3 {[%clk 0:02:56.7]} 5...
Nf6 {[%clk 0:02:55.4]} 6. e5 {[%clk 0:02:52.6]} 6... Nd5 {[%clk 0:02:50.5]} 7.
O-O {[%clk 0:02:51.5]} 7... Be7 {[%clk 0:02:49.5]} 8. Re1 {[%clk 0:02:43.8]}
8... O-O {[%clk 0:02:44.7]} 9. Nxd5 {[%clk 0:02:31.4]} 9... Bxd5 {[%clk
0:02:43.9]} 10. d3 {[%clk 0:02:31.8]} 10... Nc6 {[%clk 0:02:37.2]} 11. Bf4
{[%clk 0:02:23.2]} 11... d6 {[%clk 0:02:25.3]} 12. c4 {[%clk 0:01:36.1]} 12...
Bxf3 {[%clk 0:02:24.7]} 13. Bxf3 {[%clk 0:01:36.2]} 13... Rc8 {[%clk 0:02:24.6]}
14. Bxc6 {[%clk 0:01:35.1]} 14... Rxc6 {[%clk 0:02:24.7]} 15. Qa4 {[%clk
0:01:31.2]} 15... Qd7 {[%clk 0:02:19.6]} 16. Rad1 {[%clk 0:01:29.9]} 16... dxe5
{[%clk 0:01:58.5]} 17. Bxe5 {[%clk 0:01:28.9]} 17... f6 {[%clk 0:00:46.8]} 18.
Bc3 {[%clk 0:01:28.6]} 18... Rd8 {[%clk 0:00:46.9]} 19. d4 {[%clk 0:01:18.9]}
19... Rd6 {[%clk 0:00:47]} 20. Qxd7 {[%clk 0:00:47.2]} 20... R8xd7 {[%clk
0:00:47.9]} 21. d5 {[%clk 0:00:47.6]} 21... exd5 {[%clk 0:00:46.5]} 22. Rxd5
{[%clk 0:00:47.3]} 22... Rxd5 {[%clk 0:00:46.9]} 23. cxd5 {[%clk 0:00:48.2]}
23... Kf7 {[%clk 0:00:47.4]} 24. Rd1 {[%clk 0:00:48.1]} 24... b5 {[%clk
0:00:48]} 25. b3 {[%clk 0:00:45.5]} 25... Bd6 {[%clk 0:00:44.7]} 26. Kf1 {[%clk
0:00:45]} 26... Be5 {[%clk 0:00:43.3]} 27. Bxe5 {[%clk 0:00:41.3]} 27... fxe5
{[%clk 0:00:44.2]} 28. Ke2 {[%clk 0:00:42]} 28... Ke7 {[%clk 0:00:41.8]} 29. Ke3
{[%clk 0:00:40.9]} 29... Kd6 {[%clk 0:00:41.9]} 30. Ke4 {[%clk 0:00:39.6]} 30...
Rc7 {[%clk 0:00:42.4]} 31. Rc1 {[%clk 0:00:38.8]} 31... c4 {[%clk 0:00:42.6]}
32. Rc3 {[%clk 0:00:30.7]} 32... g5 {[%clk 0:00:37.3]} 33. f3 {[%clk 0:00:19]}
33... a5 {[%clk 0:00:21.6]} 34. h4 {[%clk 0:00:15.7]} 34... gxh4 {[%clk
0:00:21.2]} 35. gxh4 {[%clk 0:00:16.6]} 35... cxb3 {[%clk 0:00:21.4]} 36. Rxb3
{[%clk 0:00:16.2]} 36... Rc4+ {[%clk 0:00:21.4]} 37. Ke3 {[%clk 0:00:16.7]}
37... b4 {[%clk 0:00:20.1]} 38. a3 {[%clk 0:00:16.9]} 38... Rxh4 {[%clk
0:00:20]} 39. axb4 {[%clk 0:00:17.1]} 39... Rxb4 {[%clk 0:00:19.1]} 40. Rc3
{[%clk 0:00:12]} 40... h5 {[%clk 0:00:16.2]} 41. Rc8 {[%clk 0:00:06]} 41... Kxd5
{[%clk 0:00:16.4]} 42. Rd8+ {[%clk 0:00:05.9]} 42... Kc4 {[%clk 0:00:16.6]} 43.
Re8 {[%clk 0:00:05.8]} 43... Rb5 {[%clk 0:00:16.7]} 44. Rh8 {[%clk 0:00:05.3]}
44... a4 {[%clk 0:00:17.2]} 45. Rxh5 {[%clk 0:00:05.4]} 45... a3 {[%clk
0:00:17.6]} 46. Kd2 {[%clk 0:00:03]} 46... a2 {[%clk 0:00:17]} 47. Rh1 {[%clk
0:00:01.4]} 47... Rb1 {[%clk 0:00:16.9]} 0-1

[Event "Early-Titled-Tuesday-Blitz-April-02-2024"]
[Site "Chess.com"]
[Date "2024.04.02"]
[Round "8"]
[White "KubaGepard"]
[Black "NastyaHn"]
[Result "1-0"]
[WhiteElo "2588"]
[BlackElo "2460"]
[TimeControl "180+1"]
[EndTime "9:29:09 PDT"]
[Termination "KubaGepard won on time"]

1. d4 {[%clk 0:02:24.5]} 1... d5 {[%clk 0:02:58.4]} 2. c4 {[%clk 0:02:20.2]}
2... e6 {[%clk 0:02:58.4]} 3. Nf3 {[%clk 0:02:18.1]} 3... Nf6 {[%clk 0:02:58.2]}
4. e3 {[%clk 0:02:18.7]} 4... Be7 {[%clk 0:02:56.5]} 5. b3 {[%clk 0:02:16.8]}
5... O-O {[%clk 0:02:54.9]} 6. Bb2 {[%clk 0:02:17]} 6... b6 {[%clk 0:02:55.2]}
7. Nc3 {[%clk 0:02:13.8]} 7... Bb7 {[%clk 0:02:54.3]} 8. cxd5 {[%clk 0:02:14.1]}
8... exd5 {[%clk 0:02:53.8]} 9. Bd3 {[%clk 0:02:14.2]} 9... Nbd7 {[%clk
0:02:53.5]} 10. Ne5 {[%clk 0:02:12.5]} 10... c5 {[%clk 0:02:47.2]} 11. O-O
{[%clk 0:02:11.2]} 11... Rc8 {[%clk 0:02:46.2]} 12. f4 {[%clk 0:02:07.3]} 12...
Ne4 {[%clk 0:02:41.5]} 13. Nxe4 {[%clk 0:02:03]} 13... dxe4 {[%clk 0:02:39.1]}
14. Be2 {[%clk 0:02:00.7]} 14... Nf6 {[%clk 0:02:25]} 15. Bc4 {[%clk 0:01:51.5]}
15... Nd5 {[%clk 0:02:14.3]} 16. Bxd5 {[%clk 0:01:43]} 16... Qxd5 {[%clk
0:02:13.1]} 17. dxc5 {[%clk 0:01:40.2]} 17... Bxc5 {[%clk 0:02:10.8]} 18. Kf2
{[%clk 0:01:24.7]} 18... Rfd8 {[%clk 0:02:02.1]} 19. Qxd5 {[%clk 0:01:21.8]}
19... Rxd5 {[%clk 0:01:58.4]} 20. Rfd1 {[%clk 0:01:21.6]} 20... Rcd8 {[%clk
0:01:55]} 21. Rxd5 {[%clk 0:01:17.6]} 21... Rxd5 {[%clk 0:01:55]} 22. Bc3 {[%clk
0:01:17.7]} 22... f6 {[%clk 0:01:42.8]} 23. Nc4 {[%clk 0:01:14.3]} 23... Rd3
{[%clk 0:01:31.4]} 24. Rc1 {[%clk 0:01:11.4]} 24... b5 {[%clk 0:01:29.5]} 25. b4
{[%clk 0:01:09.2]} 25... Bf8 {[%clk 0:01:07.3]} 26. Nd2 {[%clk 0:01:03.6]} 26...
Bd5 {[%clk 0:01:00.5]} 27. Nb3 {[%clk 0:01:00.4]} 27... Bxb3 {[%clk 0:00:37.9]}
28. axb3 {[%clk 0:01:01.3]} 28... Kf7 {[%clk 0:00:35.7]} 29. Ke2 {[%clk
0:01:00]} 29... Be7 {[%clk 0:00:33.9]} 30. f5 {[%clk 0:00:53.9]} 30... g6 {[%clk
0:00:25.5]} 31. fxg6+ {[%clk 0:00:52.2]} 31... hxg6 {[%clk 0:00:25.2]} 32. g4
{[%clk 0:00:50.8]} 32... Ke6 {[%clk 0:00:23.1]} 33. h3 {[%clk 0:00:47.2]} 33...
Bd8 {[%clk 0:00:21.9]} 34. Bd2 {[%clk 0:00:44.8]} 34... Rxb3 {[%clk 0:00:19]}
35. Rc5 {[%clk 0:00:44.7]} 35... a6 {[%clk 0:00:08.6]} 36. Rc6+ {[%clk
0:00:44.7]} 36... Kd5 {[%clk 0:00:08.8]} 37. Rxa6 {[%clk 0:00:45.6]} 37... Be7
{[%clk 0:00:08.3]} 38. Rb6 {[%clk 0:00:43.2]} 38... Kc4 {[%clk 0:00:03.7]} 39.
Rc6+ {[%clk 0:00:40.5]} 39... Kd5 {[%clk 0:00:04]} 40. Rb6 {[%clk 0:00:38.3]}
40... Kc4 {[%clk 0:00:04.3]} 41. Re6 {[%clk 0:00:38.5]} 41... Bxb4 {[%clk
0:00:03.9]} 42. Rxe4+ {[%clk 0:00:38.7]} 42... Kc5 {[%clk 0:00:04.4]} 43. Bxb4+
{[%clk 0:00:28.1]} 43... Rxb4 {[%clk 0:00:04.4]} 44. Rxb4 {[%clk 0:00:28.7]}
44... Kxb4 {[%clk 0:00:04.8]} 45. h4 {[%clk 0:00:29.3]} 45... Kc3 {[%clk
0:00:04.4]} 46. h5 {[%clk 0:00:21.7]} 46... gxh5 {[%clk 0:00:04.1]} 47. gxh5
{[%clk 0:00:22.4]} 47... b4 {[%clk 0:00:04.5]} 48. h6 {[%clk 0:00:23.1]} 48...
b3 {[%clk 0:00:04.9]} 49. h7 {[%clk 0:00:20.5]} 49... b2 {[%clk 0:00:05.3]} 50.
h8=Q {[%clk 0:00:20.7]} 50... b1=Q {[%clk 0:00:05.3]} 51. Qxf6+ {[%clk
0:00:20.9]} 51... Kc4 {[%clk 0:00:03]} 52. Qc6+ {[%clk 0:00:20.6]} 1-0

[Event "Early-Titled-Tuesday-Blitz-April-02-2024"]
[Site "Chess.com"]
[Date "2024.04.02"]
[Round "8"]
[White "JCVanDamme10"]
[Black "enriquebutti"]
[Result "1-0"]
[WhiteElo "2351"]
[BlackElo "2197"]
[TimeControl "180+1"]
[EndTime "9:29:11 PDT"]
[Termination "JCVanDamme10 won on time"]

1. e4 {[%clk 0:03:00.9]} 1... e6 {[%clk 0:02:59.2]} 2. d4 {[%clk 0:02:59.9]}
2... d5 {[%clk 0:02:58.4]} 3. Nd2 {[%clk 0:02:58.5]} 3... Nf6 {[%clk 0:02:57.5]}
4. e5 {[%clk 0:02:58.3]} 4... Nfd7 {[%clk 0:02:56.8]} 5. Bd3 {[%clk 0:02:58.9]}
5... c5 {[%clk 0:02:56.2]} 6. c3 {[%clk 0:02:59.5]} 6... Nc6 {[%clk 0:02:55.3]}
7. Ne2 {[%clk 0:03:00]} 7... cxd4 {[%clk 0:02:54.8]} 8. cxd4 {[%clk 0:03:00.1]}
8... f6 {[%clk 0:02:54.7]} 9. exf6 {[%clk 0:03:00.3]} 9... Nxf6 {[%clk
0:02:53.8]} 10. O-O {[%clk 0:02:58.8]} 10... Bd6 {[%clk 0:02:53.1]} 11. Nf3
{[%clk 0:02:58.9]} 11... Qc7 {[%clk 0:02:52.5]} 12. h3 {[%clk 0:02:58.4]} 12...
O-O {[%clk 0:02:51]} 13. Be3 {[%clk 0:02:58.3]} 13... Nh5 {[%clk 0:02:37.1]} 14.
Rc1 {[%clk 0:02:55.5]} 14... Rxf3 {[%clk 0:02:28]} 15. gxf3 {[%clk 0:02:54.5]}
15... Qf7 {[%clk 0:02:26.9]} 16. Kg2 {[%clk 0:02:44.1]} 16... e5 {[%clk
0:02:21.6]} 17. Ng3 {[%clk 0:02:33.5]} 17... exd4 {[%clk 0:02:09.7]} 18. Bd2
{[%clk 0:02:01]} 18... Ne5 {[%clk 0:02:04]} 19. Qe2 {[%clk 0:01:48.4]} 19... Be6
{[%clk 0:01:43.8]} 20. Nxh5 {[%clk 0:01:31.3]} 20... Qxh5 {[%clk 0:01:25.4]} 21.
Rh1 {[%clk 0:01:31.1]} 21... Re8 {[%clk 0:01:07.6]} 22. f4 {[%clk 0:01:22.6]}
22... Qxe2 {[%clk 0:01:05.1]} 23. Bxe2 {[%clk 0:01:22.1]} 23... Ng6 {[%clk
0:01:04.3]} 24. Bb5 {[%clk 0:01:10.6]} 24... Rf8 {[%clk 0:00:57.4]} 25. Rhe1
{[%clk 0:01:09.6]} 25... Bf5 {[%clk 0:00:50.7]} 26. Re8 {[%clk 0:00:54.6]} 26...
Nxf4+ {[%clk 0:00:37]} 27. Bxf4 {[%clk 0:00:53.9]} 27... Bxf4 {[%clk 0:00:36.2]}
28. Rxf8+ {[%clk 0:00:53.9]} 28... Kxf8 {[%clk 0:00:35.6]} 29. Rd1 {[%clk
0:00:52.9]} 29... Be5 {[%clk 0:00:34.2]} 30. Bd3 {[%clk 0:00:52.5]} 30... Bxd3
{[%clk 0:00:28.8]} 31. Rxd3 {[%clk 0:00:51.9]} 31... Ke7 {[%clk 0:00:29]} 32. f4
{[%clk 0:00:50.4]} 32... Bf6 {[%clk 0:00:28.1]} 33. Kf3 {[%clk 0:00:49.5]} 33...
Ke6 {[%clk 0:00:27.8]} 34. Rb3 {[%clk 0:00:47.4]} 34... b6 {[%clk 0:00:26.3]}
35. a4 {[%clk 0:00:48]} 35... Kf5 {[%clk 0:00:24.3]} 36. a5 {[%clk 0:00:47.2]}
36... bxa5 {[%clk 0:00:23.3]} 37. Ra3 {[%clk 0:00:47]} 37... Bd8 {[%clk
0:00:21.4]} 38. Rd3 {[%clk 0:00:42.2]} 38... Bb6 {[%clk 0:00:20.8]} 39. b3
{[%clk 0:00:42.6]} 39... g6 {[%clk 0:00:19.5]} 40. Rd2 {[%clk 0:00:41.4]} 40...
Bc5 {[%clk 0:00:16.8]} 41. Re2 {[%clk 0:00:41.1]} 41... Bd6 {[%clk 0:00:13.7]}
42. Rd2 {[%clk 0:00:38.5]} 42... Bc5 {[%clk 0:00:13.3]} 43. Rc2 {[%clk
0:00:38.1]} 43... Bb6 {[%clk 0:00:12.8]} 44. Re2 {[%clk 0:00:30.8]} 44... Bc7
{[%clk 0:00:10.4]} 45. Re7 {[%clk 0:00:29.9]} 45... Bb6 {[%clk 0:00:07.7]} 46.
Rf7+ {[%clk 0:00:27.9]} 46... Ke6 {[%clk 0:00:06.8]} 47. Rxh7 {[%clk 0:00:27.6]}
47... d3 {[%clk 0:00:06.5]} 48. Rg7 {[%clk 0:00:26.8]} 48... Kf6 {[%clk
0:00:04.9]} 49. Rg8 {[%clk 0:00:25.8]} 49... d2 {[%clk 0:00:03.1]} 50. Ke2
{[%clk 0:00:25.2]} 1-0

[Event "Early-Titled-Tuesday-Blitz-April-02-2024"]
[Site "Chess.com"]
[Date "2024.04.02"]
[Round "8"]
[White "trriinu"]
[Black "Shahdad2007"]
[Result "0-1"]
[WhiteElo "2286"]
[BlackElo "2568"]
[TimeControl "180+1"]
[EndTime "9:29:14 PDT"]
[Termination "Shahdad2007 won by resignation"]

1. e4 {[%clk 0:03:00.9]} 1... c5 {[%clk 0:02:57]} 2. Nc3 {[%clk 0:03:00]} 2...
e6 {[%clk 0:02:55.6]} 3. g3 {[%clk 0:03:00.6]} 3... d5 {[%clk 0:02:55.7]} 4.
exd5 {[%clk 0:03:01.3]} 4... exd5 {[%clk 0:02:56.6]} 5. Bg2 {[%clk 0:03:01.9]}
5... d4 {[%clk 0:02:56.2]} 6. Nd5 {[%clk 0:02:55]} 6... Nc6 {[%clk 0:02:38.5]}
7. d3 {[%clk 0:02:53.1]} 7... Nf6 {[%clk 0:02:29.9]} 8. Bg5 {[%clk 0:02:48.5]}
8... Be7 {[%clk 0:02:28.9]} 9. Nxe7 {[%clk 0:02:47.9]} 9... Qxe7+ {[%clk
0:02:28.5]} 10. Ne2 {[%clk 0:02:46.7]} 10... h6 {[%clk 0:02:25.3]} 11. Bxf6
{[%clk 0:02:41.2]} 11... Qxf6 {[%clk 0:02:26.2]} 12. Nf4 {[%clk 0:02:41.5]}
12... O-O {[%clk 0:02:22.2]} 13. O-O {[%clk 0:02:39.9]} 13... Bd7 {[%clk
0:02:01.3]} 14. Qh5 {[%clk 0:02:22.4]} 14... Qd6 {[%clk 0:01:51]} 15. Rfe1
{[%clk 0:02:15.7]} 15... Rae8 {[%clk 0:01:48.3]} 16. Bd5 {[%clk 0:01:28]} 16...
Be6 {[%clk 0:01:30.8]} 17. Nxe6 {[%clk 0:01:03.7]} 17... fxe6 {[%clk 0:01:28.5]}
18. Be4 {[%clk 0:01:04.2]} 18... e5 {[%clk 0:01:17.7]} 19. f4 {[%clk 0:01:01.3]}
19... Kh8 {[%clk 0:01:09.6]} 20. f5 {[%clk 0:00:55.6]} 20... Re7 {[%clk
0:00:51.6]} 21. Rf1 {[%clk 0:00:45.4]} 21... Qf6 {[%clk 0:00:51]} 22. g4 {[%clk
0:00:40.7]} 22... Nb4 {[%clk 0:00:28.6]} 23. Rf2 {[%clk 0:00:36.8]} 23... g5
{[%clk 0:00:26.8]} 24. Kh1 {[%clk 0:00:23]} 24... Kg7 {[%clk 0:00:26.1]} 25. Rg1
{[%clk 0:00:20.5]} 25... Rc8 {[%clk 0:00:20.4]} 26. h4 {[%clk 0:00:17.4]} 26...
c4 {[%clk 0:00:19.5]} 27. a3 {[%clk 0:00:13.6]} 27... Na6 {[%clk 0:00:18.5]} 28.
Kg2 {[%clk 0:00:09.4]} 28... cxd3 {[%clk 0:00:18]} 29. cxd3 {[%clk 0:00:05.8]}
29... Nc5 {[%clk 0:00:16.6]} 30. Rh1 {[%clk 0:00:06.3]} 30... Nxe4 {[%clk
0:00:16.8]} 31. dxe4 {[%clk 0:00:06.1]} 31... Rc6 {[%clk 0:00:15.1]} 32. Kg3
{[%clk 0:00:03.7]} 32... d3 {[%clk 0:00:14.5]} 33. hxg5 {[%clk 0:00:02.7]} 33...
Qxg5 {[%clk 0:00:14.6]} 34. Qxg5+ {[%clk 0:00:03.2]} 34... hxg5 {[%clk
0:00:15.5]} 35. Rfh2 {[%clk 0:00:03.6]} 35... Rec7 {[%clk 0:00:14.7]} 36. Rh7+
{[%clk 0:00:03.6]} 36... Kf8 {[%clk 0:00:15.1]} 37. Rh8+ {[%clk 0:00:03.7]}
37... Ke7 {[%clk 0:00:15.6]} 38. R1h7+ {[%clk 0:00:04.3]} 38... Kd6 {[%clk
0:00:16.2]} 39. Rd8+ {[%clk 0:00:05]} 39... Kc5 {[%clk 0:00:16.6]} 40. Rxd3
{[%clk 0:00:05.6]} 40... Rxh7 {[%clk 0:00:16.2]} 41. Rd5+ {[%clk 0:00:05]} 41...
Kc4 {[%clk 0:00:16.6]} 42. Rxe5 {[%clk 0:00:05.4]} 42... Rd6 {[%clk 0:00:17.3]}
43. Re8 {[%clk 0:00:02.2]} 43... Rd3+ {[%clk 0:00:17.6]} 44. Kg2 {[%clk
0:00:02.4]} 44... Rhd7 {[%clk 0:00:18.3]} 45. f6 {[%clk 0:00:02.2]} 45... Rd2+
{[%clk 0:00:18.7]} 46. Kf1 {[%clk 0:00:02.4]} 46... Kd3 {[%clk 0:00:17.9]} 47.
f7 {[%clk 0:00:02.2]} 47... Rxf7+ {[%clk 0:00:17.7]} 48. Ke1 {[%clk 0:00:02.9]}
48... Ke3 {[%clk 0:00:17.1]} 0-1

[Event "Early-Titled-Tuesday-Blitz-April-02-2024"]
[Site "Chess.com"]
[Date "2024.04.02"]
[Round "8"]
[White "Oleksandr_Bortnyk"]
[Black "djokovic74"]
[Result "1/2-1/2"]
[WhiteElo "3025"]
[BlackElo "2760"]
[TimeControl "180+1"]
[EndTime "9:29:15 PDT"]
[Termination "Game drawn by repetition"]

1. e4 {[%clk 0:03:00.9]} 1... e6 {[%clk 0:03:00.4]} 2. Nf3 {[%clk 0:03:00.1]}
2... d5 {[%clk 0:03:00.8]} 3. e5 {[%clk 0:03:01]} 3... c5 {[%clk 0:03:01.1]} 4.
d4 {[%clk 0:03:01.5]} 4... Nc6 {[%clk 0:03:01]} 5. Bd3 {[%clk 0:03:01.4]} 5...
cxd4 {[%clk 0:02:58.9]} 6. O-O {[%clk 0:03:01.6]} 6... Nge7 {[%clk 0:02:48.9]}
7. Bf4 {[%clk 0:03:01.5]} 7... Ng6 {[%clk 0:02:48.9]} 8. Bg3 {[%clk 0:03:01.8]}
8... Be7 {[%clk 0:02:49.2]} 9. Re1 {[%clk 0:03:02.1]} 9... O-O {[%clk
0:02:48.3]} 10. Nbd2 {[%clk 0:03:02.1]} 10... Bd7 {[%clk 0:02:20.6]} 11. h4
{[%clk 0:02:51.7]} 11... f6 {[%clk 0:02:07.2]} 12. exf6 {[%clk 0:02:42.8]} 12...
Bxf6 {[%clk 0:02:06.9]} 13. h5 {[%clk 0:02:42.5]} 13... Nge7 {[%clk 0:02:07.4]}
14. Ne5 {[%clk 0:02:36.5]} 14... Nxe5 {[%clk 0:02:02.2]} 15. Bxe5 {[%clk
0:02:37.4]} 15... Bxe5 {[%clk 0:02:02.8]} 16. Rxe5 {[%clk 0:02:36.9]} 16... Nc6
{[%clk 0:02:03.3]} 17. Qe2 {[%clk 0:02:03.4]} 17... Nxe5 {[%clk 0:01:54.2]} 18.
Qxe5 {[%clk 0:02:04.3]} 18... Qf6 {[%clk 0:01:54.6]} 19. Nf3 {[%clk 0:02:02.7]}
19... Qxe5 {[%clk 0:01:33.3]} 20. Nxe5 {[%clk 0:02:03.6]} 20... Be8 {[%clk
0:01:22.3]} 21. g4 {[%clk 0:02:03.2]} 21... Rc8 {[%clk 0:01:22.3]} 22. a4 {[%clk
0:02:00.9]} 22... Rf4 {[%clk 0:01:06.6]} 23. f3 {[%clk 0:01:54.6]} 23... Rf8
{[%clk 0:01:05.9]} 24. Kg2 {[%clk 0:01:54.3]} 24... g6 {[%clk 0:00:51.6]} 25. h6
{[%clk 0:01:51.3]} 25... Bc6 {[%clk 0:00:51.6]} 26. g5 {[%clk 0:01:48.7]} 26...
Rfe8 {[%clk 0:00:49.5]} 27. Kg3 {[%clk 0:01:44.9]} 27... Kf8 {[%clk 0:00:49.4]}
28. b4 {[%clk 0:01:36.8]} 28... Ke7 {[%clk 0:00:46.6]} 29. b5 {[%clk 0:01:36.9]}
29... Bd7 {[%clk 0:00:47.1]} 30. Re1 {[%clk 0:01:34.2]} 30... Kd6 {[%clk
0:00:45.9]} 31. Nf7+ {[%clk 0:01:33.6]} 31... Ke7 {[%clk 0:00:43.6]} 32. Ne5
{[%clk 0:01:33.9]} 32... Kd6 {[%clk 0:00:44]} 33. f4 {[%clk 0:01:28.8]} 33... a6
{[%clk 0:00:32.9]} 34. Ng4 {[%clk 0:01:23.4]} 34... axb5 {[%clk 0:00:30.3]} 35.
axb5 {[%clk 0:01:21.9]} 35... Rc3 {[%clk 0:00:27.3]} 36. Nf6 {[%clk 0:01:21.9]}
36... Rh8 {[%clk 0:00:27.6]} 37. Kh4 {[%clk 0:01:15.7]} 37... Ra3 {[%clk
0:00:25.7]} 38. Rb1 {[%clk 0:01:10.6]} 38... b6 {[%clk 0:00:25.2]} 39. Rb4
{[%clk 0:01:05.8]} 39... Kc5 {[%clk 0:00:22]} 40. Rb1 {[%clk 0:01:01.3]} 40...
Kd6 {[%clk 0:00:22.2]} 41. Rd1 {[%clk 0:00:58]} 41... Ra5 {[%clk 0:00:19.4]} 42.
Ng4 {[%clk 0:00:44.8]} 42... Bxb5 {[%clk 0:00:15.2]} 43. Ne5 {[%clk 0:00:43.7]}
43... Bxd3 {[%clk 0:00:14.5]} 44. cxd3 {[%clk 0:00:35.9]} 44... Rc8 {[%clk
0:00:09]} 45. Rb1 {[%clk 0:00:32.6]} 45... b5 {[%clk 0:00:08.5]} 46. Ng4 {[%clk
0:00:31.6]} 46... Rc7 {[%clk 0:00:05.6]} 47. Nf6 {[%clk 0:00:31.7]} 47... Rb7
{[%clk 0:00:01.6]} 48. Ne8+ {[%clk 0:00:29.4]} 48... Kd7 {[%clk 0:00:01.6]} 49.
Nf6+ {[%clk 0:00:30.3]} 49... Kd6 {[%clk 0:00:01.8]} 50. Rc1 {[%clk 0:00:31.2]}
50... b4 {[%clk 0:00:01.8]} 51. Ne8+ {[%clk 0:00:32]} 51... Kd7 {[%clk
0:00:02.3]} 52. Nf6+ {[%clk 0:00:32.9]} 52... Kd6 {[%clk 0:00:03]} 53. Ne8+
{[%clk 0:00:18.6]} 53... Kd7 {[%clk 0:00:03.6]} 54. Nf6+ {[%clk 0:00:16.5]}
54... Kd6 {[%clk 0:00:04.2]} 1/2-1/2